bitfinex/quotes_BTCUSD_20240905
["timestamp","ask_amount","ask_price","bid_price","bid_amount"]
[1725570505492,0.96932939,56224.0,56223.0,0.01841084]
[1725570505712,0.94271749,56224.0,56223.0,0.18841084]
[1725570505928,0.889297,56224.0,56223.0,0.18841084]
[1725570506582,0.94271749,56224.0,56223.0,0.18841084]
[1725570506915,0.889297,56224.0,56223.0,0.18841084]
[1725570507998,0.94271749,56224.0,56223.0,0.18841084]
[1725570508894,0.889297,56224.0,56223.0,0.18841084]
[1725570509587,0.533578,56224.0,56223.0,0.18841084]
[1725570511124,0.58697791,56224.0,56223.0,0.18841084]
[1725570511351,0.177859,56224.0,56223.0,0.18841084]
[1725570511570,0.000816,56224.0,56223.0,0.18841084]
[1725570511781,0.05421462,56224.0,56223.0,0.18841084]
[1725570512816,0.000816,56224.0,56223.0,0.18841084]
[1725570523972,0.178675,56224.0,56223.0,0.18841084]
[1725570527800,0.534394,56224.0,56223.0,0.18841084]
[1725570535221,0.27491071,56224.0,56223.0,0.18841084]
[1725570535447,0.45276971,56224.0,56223.0,0.18841084]
[1725570536585,0.45358571,56224.0,56223.0,0.18841084]
[1725570540631,0.80930471,56224.0,56223.0,0.016632]
[1725570540861,0.88944325,56224.0,56223.0,0.01841084]
[1725570541113,1.16502371,56224.0,56223.0,0.01841084]
[1725570541353,1.24515811,56224.0,56223.0,0.01841084]
[1725570541800,1.16502371,56224.0,56223.0,0.01841084]
[1725570542473,1.24516426,56224.0,56223.0,0.01841084]
[1725570543222,1.16502371,56224.0,56223.0,0.01841084]
[1725570543434,1.24516426,56224.0,56223.0,0.01841084]
[1725570544137,1.16502371,56224.0,56223.0,0.01841084]
[1725570545313,1.24516426,56224.0,56223.0,0.01841084]
[1725570546187,1.16502371,56224.0,56223.0,0.01841084]
[1725570546409,1.24516426,56224.0,56223.0,0.01841084]
[1725570546627,1.16502371,56224.0,56223.0,0.01841084]
[1725570547525,1.23443478,56224.0,56223.0,0.01841084]
[1725570547980,1.16502371,56224.0,56223.0,0.01841084]
[1725570548204,1.34128608,56224.0,56223.0,0.01841084]
[1725570548649,1.16502371,56224.0,56223.0,0.01841084]
[1725570549782,1.24515523,56224.0,56223.0,0.01841084]
[1725570549996,1.34128582,56224.0,56223.0,0.01841084]
[1725570550870,1.325969,56224.0,56223.0,0.01841084]
[1725570551338,1.325969,56224.0,56223.0,0.016632]
[1725570552000,1.387169,56224.0,56223.0,0.016632]
[1725570554186,1.3871622,56224.0,56223.0,0.016632]
[1725570554421,1.307032,56224.0,56223.0,0.016632]
[1725570556953,1.245832,56224.0,56223.0,0.016632]
[1725570557186,1.245832,56224.0,56223.0,0.01841084]
[1725570560513,1.29924065,56224.0,56223.0,0.01841084]
[1725570560728,1.245832,56224.0,56223.0,0.01841084]
[1725570561408,1.32594807,56224.0,56223.0,0.01841084]
[1725570562273,1.31524563,56224.0,56223.0,0.01841084]
[1725570566400,1.422071,56224.0,56223.0,0.01841084]
[1725570566606,1.422071,56224.0,56223.0,0.016632]
[1725570567781,1.422071,56224.0,56223.0,0.01841084]
[1725570568198,1.245832,56224.0,56223.0,0.01841084]
[1725570568662,1.32595607,56224.0,56223.0,0.01841084]
[1725570569285,1.245832,56224.0,56223.0,0.01841084]
[1725570570143,1.32595607,56224.0,56223.0,0.01841084]
[1725570570955,0.94353317,56224.0,56223.0,0.09661084]
[1725570571166,0.890113,56224.0,56223.0,0.09661084]
[1725570576118,0.97025502,56224.0,56223.0,0.09661084]
[1725570580466,0.890113,56224.0,56223.0,0.09661084]
[1725570581367,0.97027571,56224.0,56223.0,0.09661084]
[1725570581589,0.890113,56224.0,56223.0,0.09661084]
[1725570582078,1.06636266,56224.0,56223.0,0.09661084]
[1725570582748,0.890113,56224.0,56223.0,0.09661084]
[1725570584652,0.99696903,56224.0,56223.0,0.09661084]
[1725570585180,0.9970159,56224.0,56223.0,0.09661084]
[1725570586004,1.3527349,56224.0,56223.0,0.09661084]
[1725570587484,0.99077377,56224.0,56223.0,0.09661084]
[1725570587912,0.81291377,56224.0,56223.0,0.09661084]
[1725570588793,0.889297,56224.0,56223.0,0.09661084]
[1725570592877,0.12026118,56228.0,56226.0,0.00177884]
[1725570592878,0.23130837,56227.0,56226.0,0.00177884]
[1725570593091,0.58700837,56227.0,56226.0,0.08107884]
[1725570593300,0.533553,56227.0,56226.0,0.08107884]
[1725570594171,0.533553,56227.0,56226.0,0.09007884]
[1725570594831,0.889253,56227.0,56226.0,0.0883]
[1725570595043,1.29840837,56227.0,56226.0,0.009]
[1725570595507,1.244953,56227.0,56226.0,0.005]
[1725570595719,1.244953,56227.0,56226.0,0.009]
[1725570595915,1.244953,56227.0,56226.0,0.004]
[1725570596169,0.533569,56225.0,56224.0,0.00177884]
[1725570596397,0.889282,56225.0,56224.0,0.00177884]
[1725570597283,0.889282,56225.0,56224.0,0.00577884]
[1725570597547,0.94271778,56225.0,56224.0,0.01077884]
[1725570598427,0.889282,56225.0,56224.0,0.01077884]
[1725570598873,0.533569,56225.0,56224.0,0.01077884]
[1725570599089,0.533569,56225.0,56224.0,0.09007884]
[1725570609477,0.534385,56225.0,56224.0,0.09007884]
[1725570613406,0.000816,56225.0,56224.0,0.09007884]
[1725570613619,0.000816,56225.0,56224.0,0.26793784]
[1725570618593,0.000816,56225.0,56224.0,0.266159]
[1725570618792,0.000816,56225.0,56224.0,0.26793784]
[1725570620146,0.000816,56225.0,56224.0,0.09007884]
[1725570621381,0.000816,56225.0,56224.0,0.09171084]
[1725570624597,0.000816,56225.0,56224.0,0.26956984]
[1725570625941,0.000816,56225.0,56224.0,0.62528884]
[1725570626149,0.000816,56225.0,56224.0,1.07280784]
[1725570626787,0.000816,56225.0,56224.0,1.06780784]
[1725570626998,0.000816,56225.0,56224.0,1.06380784]
[1725570627211,0.001816,56225.0,56224.0,1.07180784]
[1725570627448,0.002816,56225.0,56224.0,1.07880784]
[1725570630650,0.002816,56225.0,56224.0,1.43452684]
[1725570631056,0.455646,56236.0,56235.0,0.00177884]
[1725570631272,0.633468,56236.0,56235.0,0.00177884]
[1725570632763,0.638468,56236.0,56235.0,0.00177884]
[1725570633869,0.643468,56236.0,56235.0,0.00177884]
[1725570634776,0.999114,56236.0,56235.0,0.00177884]
[1725570645568,0.99993,56236.0,56235.0,0.00177884]
[1725570646943,0.010816,56236.0,56235.0,0.00177884]
[1725570647175,0.010816,56236.0,56235.0,1.06130384]
[1725570647361,0.010816,56236.0,56235.0,0.70565384]
[1725570647842,0.010816,56236.0,56235.0,1.06130384]
[1725570648030,0.005816,56236.0,56235.0,1.06130384]
[1725570648287,0.006816,56236.0,56235.0,1.06830384]
[1725570648956,0.001816,56236.0,56235.0,1.06830384]
[1725570649188,0.001816,56236.0,56235.0,1.07630384]
[1725570650533,0.001816,56236.0,56235.0,1.43195384]
[1725570651163,0.001816,56236.0,56235.0,1.5431703]
[1725570657281,0.001816,56236.0,56235.0,1.1875203]
[1725570662944,0.001816,56236.0,56235.0,1.07630384]
[1725570663199,0.535282,56236.0,56235.0,0.01677884]
[1725570663436,0.890926,56236.0,56235.0,0.01677884]
[1725570669382,0.890926,56236.0,56235.0,0.09017884]
[1725570670713,0.890926,56236.0,56235.0,0.09181084]
[1725570671385,0.535282,56236.0,56235.0,0.18371084]
[1725570671606,0.001816,56236.0,56235.0,0.18371084]
[1725570672553,0.179638,56236.0,56235.0,0.18371084]
[1725570673064,0.001816,56236.0,56235.0,1.07283584]
[1725570673284,0.001816,56236.0,56235.0,1.42848584]
[1725570674449,0.001816,56236.0,56235.0,1.6059968]
[1725570674712,0.001816,56236.0,56235.0,1.9716468]
[1725570675416,0.001816,56236.0,56235.0,1.9946468]
[1725570675637,0.001816,56236.0,56235.0,2.3622968]
[1725570675848,0.001816,56236.0,56235.0,2.3762968]
[1725570676085,0.000816,56236.0,56235.0,2.3692968]
[1725570676332,0.000816,56236.0,56235.0,2.3622968]
[1725570676558,0.000816,56237.0,56236.0,1.63417684]
[1725570676802,0.000816,56237.0,56236.0,2.08620426]
[1725570677710,0.000816,56237.0,56236.0,2.54184826]
[1725570677944,0.000816,56237.0,56236.0,2.56484826]
[1725570678177,0.000816,56237.0,56236.0,2.59284826]
[1725570678623,0.000816,56237.0,56236.0,2.4816318]
[1725570678853,0.000816,56237.0,56236.0,2.59284826]
[1725570681845,0.000816,56237.0,56236.0,2.57884826]
[1725570682467,0.000816,56237.0,56236.0,2.59284826]
[1725570682907,0.000816,56237.0,56236.0,2.56484826]
[1725570683360,0.000816,56237.0,56236.0,2.59284826]
[1725570683581,0.000816,56237.0,56236.0,2.57884826]
[1725570683802,0.000816,56237.0,56236.0,2.56484826]
[1725570684266,0.000816,56237.0,56236.0,2.57884826]
[1725570684922,0.000816,56237.0,56236.0,2.59284826]
[1725570685148,0.000816,56237.0,56236.0,2.57884826]
[1725570685386,0.000816,56237.0,56236.0,2.59284826]
[1725570685891,0.000816,56237.0,56236.0,2.57884826]
[1725570686334,0.000816,56237.0,56236.0,2.59284826]
[1725570690389,0.000816,56237.0,56236.0,2.23720426]
[1725570695610,0.000816,56238.0,56237.0,1.708053]
[1725570695866,0.000816,56238.0,56237.0,2.0083428]
[1725570696911,0.000816,56238.0,56237.0,2.0223428]
[1725570697826,0.000816,56238.0,56237.0,2.0383428]
[1725570703788,0.355519,56256.0,56241.0,0.00177884]
[1725570704008,0.355519,56256.0,56240.0,0.02]
[1725570704009,0.711038,56256.0,56255.0,0.00177884]
[1725570704234,0.888796,56256.0,56255.0,0.00177884]
[1725570704446,0.944096,56256.0,56255.0,0.00177884]
[1725570705989,0.944096,56256.0,56255.0,0.01177884]
[1725570707097,0.0553,56256.0,56255.0,0.01177884]
[1725570707321,0.233058,56256.0,56255.0,0.01177884]
[1725570707782,0.233058,56256.0,56255.0,0.01977884]
[1725570708630,0.0553,56256.0,56255.0,0.01977884]
[1725570708871,0.233058,56256.0,56255.0,0.01977884]
[1725570712404,0.0553,56256.0,56255.0,0.01977884]
[1725570714415,0.233058,56256.0,56255.0,0.01977884]
[1725570715525,0.0553,56256.0,56255.0,0.01977884]
[1725570715972,0.00082,56257.0,56256.0,0.00177884]
[1725570717558,0.00082,56257.0,56256.0,0.00877884]
[1725570718080,0.00082,56257.0,56256.0,0.01777884]
[1725570718755,0.178575,56257.0,56256.0,0.01777884]
[1725570718984,0.05612,56257.0,56256.0,0.01777884]
[1725570721010,0.00082,56257.0,56256.0,0.01777884]
[1725570721464,0.05409737,56257.0,56256.0,0.01777884]
[1725570722160,0.0534157,56260.0,56258.0,0.00177884]
[1725570722402,0.0534157,56259.0,56258.0,0.00177884]
[1725570722640,0.177749,56259.0,56258.0,0.00177884]
[1725570723128,0.2311617,56260.0,56258.0,0.00177884]
[1725570723757,0.23116596,56260.0,56258.0,0.00177884]
[1725570723972,0.23116596,56260.0,56258.0,0.01177884]
[1725570724528,0.23116596,56260.0,56258.0,0.00577884]
[1725570724619,0.23116596,56260.0,56259.0,0.00177884]
[1725570725477,0.177749,56259.0,56258.0,0.009]
[1725570725713,0.177749,56259.0,56258.0,0.01077884]
[1725570726391,0.177749,56259.0,56258.0,0.00677884]
[1725570726618,0.177749,56259.0,56258.0,0.00177884]
[1725570727541,0.177749,56259.0,56258.0,0.00677884]
[1725570728876,0.177749,56259.0,56258.0,0.01277884]
[1725570734073,0.177749,56259.0,56258.0,0.011]
[1725570734306,0.177749,56259.0,56258.0,0.01277884]
[1725570734523,0.533247,56259.0,56258.0,0.01277884]
[1725570734778,0.177749,56259.0,56258.0,0.01277884]
[1725570735444,0.177749,56259.0,56258.0,0.01366484]
[1725570735672,0.533247,56259.0,56258.0,0.01366484]
[1725570740843,0.533247,56259.0,56258.0,0.01277884]
[1725570741083,0.61337712,56259.0,56258.0,0.01277884]
[1725570741286,0.533247,56259.0,56258.0,0.01277884]
[1725570744400,0.61338456,56259.0,56258.0,0.01277884]
[1725570744824,0.533247,56259.0,56258.0,0.01277884]
[1725570745053,0.61338456,56259.0,56258.0,0.01277884]
[1725570746151,0.533247,56259.0,56258.0,0.01277884]
[1725570746594,0.61338456,56259.0,56258.0,0.01277884]
[1725570746821,0.61338456,56259.0,56258.0,0.01366484]
[1725570747489,0.25788656,56259.0,56258.0,0.01366484]
[1725570748402,0.61338456,56259.0,56258.0,0.01366484]
[1725570748626,0.25788656,56259.0,56258.0,0.01366484]
[1725570748855,0.61338456,56259.0,56258.0,0.01366484]
[1725570749084,0.177749,56259.0,56258.0,0.01366484]
[1725570749299,0.25788656,56259.0,56258.0,0.01366484]
[1725570749507,0.25790146,56259.0,56258.0,0.01366484]
[1725570749924,0.61339946,56259.0,56258.0,0.01366484]
[1725570750138,0.61339946,56259.0,56258.0,0.01277884]
[1725570750381,0.25790146,56259.0,56258.0,0.01277884]
[1725570750810,0.25790146,56259.0,56258.0,0.08917884]
[1725570751448,0.08015246,56259.0,56258.0,0.08917884]
[1725570751663,0.25790146,56259.0,56258.0,0.08917884]
[1725570753353,0.177749,56259.0,56258.0,0.08917884]
[1725570753778,0.178563,56260.0,56259.0,0.00177884]
[1725570755100,0.178563,56260.0,56259.0,0.00577884]
[1725570755328,0.35566805,56260.0,56259.0,0.00577884]
[1725570755763,0.2487981,56260.0,56259.0,0.00577884]
[1725570755976,0.35566805,56260.0,56259.0,0.01077884]
[1725570756195,1.06665205,56260.0,56259.0,0.009]
[1725570756427,0.6042901,56260.0,56259.0,0.009]
[1725570756660,0.6042901,56260.0,56259.0,0.01077884]
[1725570757727,0.71117979,56260.0,56259.0,0.01077884]
[1725570757939,0.534055,56260.0,56259.0,0.01077884]
[1725570758157,0.71120807,56260.0,56259.0,0.01077884]
[1725570761198,1.06670007,56260.0,56259.0,0.01077884]
[1725570761430,0.888661,56260.0,56259.0,0.01077884]
[1725570761922,0.99555069,56260.0,56259.0,0.01077884]
[1725570762803,0.64005869,56260.0,56259.0,0.01077884]
[1725570763022,0.533169,56260.0,56259.0,0.01077884]
[1725570763423,0.99555069,56260.0,56259.0,0.01077884]
[1725570764565,0.888661,56260.0,56259.0,0.01077884]
[1725570765251,0.99555503,56260.0,56259.0,0.01077884]
[1725570766338,0.99637103,56260.0,56259.0,0.01077884]
[1725570767335,0.889477,56260.0,56259.0,0.01077884]
[1725570767766,1.06660579,56260.0,56259.0,0.01077884]
[1725570768199,0.99637103,56260.0,56259.0,0.01077884]
[1725570768408,1.06661715,56260.0,56259.0,0.01077884]
[1725570769584,0.99637103,56260.0,56259.0,0.01077884]
[1725570770504,1.14977103,56260.0,56259.0,0.009]
[1725570770756,1.57979358,56260.0,56259.0,0.009]
[1725570771231,1.74013462,56260.0,56259.0,0.005]
[1725570771466,1.57979358,56260.0,56259.0,0.005]
[1725570771688,1.93528558,56260.0,56259.0,0.007]
[1725570771925,1.57979358,56260.0,56259.0,0.002]
[1725570772122,1.57979358,56260.0,56258.0,0.001632]
[1725570772123,1.244243,56259.0,56258.0,0.001632]
[1725570772374,1.31445112,56259.0,56258.0,0.001632]
[1725570773923,1.31545112,56259.0,56258.0,0.001632]
[1725570774370,1.31745112,56259.0,56258.0,0.001632]
[1725570777681,1.45073789,56259.0,56258.0,0.001632]
[1725570778118,1.31745112,56259.0,56258.0,0.00341084]
[1725570779512,0.003,56259.0,56258.0,0.25596284]
[1725570779761,0.003,56259.0,56258.0,0.07821084]
[1725570780206,0.002,56259.0,56258.0,0.17541084]
[1725570780439,0.000816,56260.0,56259.0,0.07657884]
[1725570781114,0.178562,56260.0,56259.0,0.07657884]
[1725570781781,0.180562,56260.0,56259.0,0.07657884]
[1725570782654,0.181562,56260.0,56259.0,0.07657884]
[1725570786671,0.003816,56260.0,56259.0,0.07657884]
[1725570787134,0.181562,56260.0,56259.0,0.07657884]
[1725570789146,0.181562,56260.0,56259.0,0.07821084]
[1725570791134,0.35548,56262.0,56259.0,0.07821084]
[1725570791348,0.533219,56262.0,56261.0,0.00177884]
[1725570792894,0.534219,56262.0,56261.0,0.00177884]
[1725570793295,0.177739,56262.0,56261.0,0.00177884]
[1725570793543,0.177739,56262.0,56261.0,0.07817884]
[1725570793760,0.534219,56262.0,56261.0,0.07817884]
[1725570793994,0.178739,56262.0,56261.0,0.07817884]
[1725570797786,0.534218,56262.0,56261.0,0.07817884]
[1725570801216,0.535034,56262.0,56261.0,0.07817884]
[1725570803436,0.58835359,56262.0,56261.0,0.07817884]
[1725570813417,0.65852635,56262.0,56261.0,0.07817884]
[1725570813619,0.65852635,56262.0,56261.0,0.07981084]
[1725570816439,0.60520676,56262.0,56261.0,0.07981084]
[1725570816654,0.65852635,56262.0,56261.0,0.07981084]
[1725570818627,0.60520676,56262.0,56261.0,0.07981084]
[1725570820469,0.68525727,56262.0,56261.0,0.07981084]
[1725570823140,0.96068576,56262.0,56261.0,0.07981084]
[1725570823609,1.06741977,56262.0,56261.0,0.07981084]
[1725570824560,0.96068576,56262.0,56261.0,0.07981084]
[1725570825711,1.09427952,56262.0,56261.0,0.07981084]
[1725570825938,0.96068576,56262.0,56261.0,0.07981084]
[1725570827535,0.60520676,56262.0,56261.0,0.07981084]
[1725570832212,0.71209411,56262.0,56261.0,0.07981084]
[1725570832435,0.71209313,56262.0,56261.0,0.07981084]
[1725570835824,1.06757213,56262.0,56261.0,0.07981084]
[1725570836019,0.71209313,56262.0,56261.0,0.07981084]
[1725570836654,0.60520676,56262.0,56261.0,0.07981084]
[1725570837371,0.96068576,56262.0,56261.0,0.07981084]
[1725570837565,0.48352183,56262.0,56261.0,0.07981084]
[1725570838127,0.16126258,56262.0,56261.0,0.07981084]
[1725570838805,0.51674158,56262.0,56261.0,0.07981084]
[1725570841296,0.87222058,56262.0,56261.0,0.001632]
[1725570841759,0.87222058,56262.0,56261.0,0.00341084]
[1725570842411,0.355479,56262.0,56261.0,0.00341084]
[1725570842556,0.533218,56262.0,56261.0,0.00341084]
[1725570842760,0.888697,56262.0,56261.0,0.00341084]
[1725570845107,0.96885879,56262.0,56261.0,0.00341084]
[1725570845603,0.96885879,56262.0,56261.0,0.001632]
[1725570845824,0.888697,56262.0,56261.0,0.001632]
[1725570846050,1.244176,56262.0,56261.0,0.001632]
[1725570846851,0.888697,56262.0,56261.0,0.001632]
[1725570847240,1.244176,56262.0,56261.0,0.001632]
[1725570848887,0.889513,56262.0,56261.0,0.00341084]
[1725570849113,0.889513,56262.0,56261.0,0.001632]
[1725570849777,0.534034,56262.0,56261.0,0.076332]
[1725570849996,0.534034,56262.0,56261.0,0.16971084]
[1725570852311,0.64088415,56262.0,56261.0,0.16971084]
[1725570855311,0.64088415,56262.0,56261.0,0.076332]
[1725570855527,0.99636315,56262.0,56261.0,0.076332]
[1725570855733,0.64088415,56262.0,56261.0,0.076332]
[1725570855943,0.99636289,56262.0,56261.0,0.076332]
[1725570856140,0.64088389,56262.0,56261.0,0.076332]
[1725570856630,0.99636289,56262.0,56261.0,0.076332]
[1725570860325,1.35184189,56262.0,56261.0,0.076332]
[1725570860568,1.37471423,56262.0,56261.0,0.001632]
[1725570860769,2.23522623,56262.0,56261.0,0.001632]
[1725570860981,2.34719148,56262.0,56261.0,0.001632]
[1725570861196,2.21362623,56262.0,56261.0,0.001632]
[1725570861415,2.34719148,56262.0,56261.0,0.001632]
[1725570862336,2.70267048,56262.0,56261.0,0.001632]
[1725570862555,2.56910523,56262.0,56261.0,0.001632]
[1725570864703,2.21362623,56262.0,56261.0,0.001632]
[1725570865627,2.66932639,56262.0,56261.0,0.001632]
[1725570865841,2.82960469,56262.0,56261.0,0.001632]
[1725570866058,3.39718482,56262.0,56261.0,0.001632]
[1725570867372,3.55732345,56262.0,56261.0,0.001632]
[1725570867586,3.65112345,56262.0,56261.0,0.001632]
[1725570867813,3.62326502,56262.0,56261.0,0.001632]
[1725570868491,2.92326502,56262.0,56261.0,0.001632]
[1725570869452,2.76312639,56262.0,56261.0,0.001632]
[1725570870851,2.76290523,56262.0,56261.0,0.001632]
[1725570871543,3.46290523,56262.0,56261.0,0.001632]
[1725570871739,3.21229423,56262.0,56261.0,0.001632]
[1725570875702,3.03488323,56262.0,56261.0,0.001632]
[1725570875937,2.69328423,56262.0,56261.0,0.001632]
[1725570876174,2.76130069,56262.0,56261.0,0.001632]
[1725570877313,2.06130069,56262.0,56261.0,0.001632]
[1725570877503,2.13556969,56262.0,56261.0,0.001632]
[1725570881106,2.68535823,56262.0,56261.0,0.001632]
[1725570881776,2.68535823,56262.0,56261.0,0.079232]
[1725570884049,2.68535823,56262.0,56261.0,0.001632]
[1725570887907,2.65750069,56262.0,56261.0,0.001632]
[1725570889961,2.79080566,56262.0,56261.0,0.001632]
[1725570890397,2.65750069,56262.0,56261.0,0.001632]
[1725570891065,2.6853588,56262.0,56261.0,0.001632]
[1725570891497,2.6797768,56262.0,56261.0,0.001632]
[1725570897246,2.0702848,56262.0,56261.0,0.001632]
[1725570897711,2.04242669,56262.0,56261.0,0.001632]
[1725570901011,2.07028507,56262.0,56261.0,0.001632]
[1725570902331,2.65541407,56262.0,56261.0,0.001632]
[1725570903054,2.50513007,56262.0,56261.0,0.001632]
[1725570903280,2.48353007,56262.0,56261.0,0.001632]
[1725570904017,1.44307261,56262.0,56261.0,0.172932]
[1725570905864,1.55428907,56262.0,56261.0,0.172932]
[1725570908374,1.52643069,56262.0,56261.0,0.172932]
[1725570909493,1.41521423,56262.0,56261.0,0.172932]
[1725570909975,1.05973523,56262.0,56261.0,0.172932]
[1725570910388,1.16654909,56262.0,56261.0,0.172932]
[1725570910826,0.989513,56262.0,56261.0,0.172932]
[1725570911390,1.06959208,56262.0,56261.0,0.172932]
[1725570913466,0.989513,56262.0,56261.0,0.172932]
[1725570913668,0.634034,56262.0,56261.0,0.172932]
[1725570915302,0.05416361,56262.0,56261.0,0.17471084]
[1725570915511,0.000816,56262.0,56261.0,0.35245384]
[1725570916182,0.000816,56262.0,56261.0,0.17471084]
[1725570917392,0.000816,56262.0,56261.0,0.35245384]
[1725570917612,0.02785576,56266.0,56264.0,0.00177884]
[1725570917874,0.66103676,56266.0,56265.0,0.18257884]
[1725570918760,0.67268244,56266.0,56265.0,0.18257884]
[1725570920128,1.02813644,56266.0,56265.0,0.1808]
[1725570920358,0.67268244,56266.0,56265.0,0.1808]
[1725570920576,0.67268244,56266.0,56265.0,0.1828]
[1725570920798,0.05334761,56271.0,56265.0,0.1828]
[1725570921052,0.01861063,56275.0,56274.0,0.18257884]
[1725570921339,0.01222701,56281.0,56279.0,0.00177884]
[1725570921579,0.01222701,56281.0,56273.0,0.11121646]
[1725570921580,0.178497,56282.0,56280.0,0.18257884]
[1725570921801,0.178496,56282.0,56281.0,0.08277884]
[1725570922026,0.533849,56282.0,56281.0,0.08277884]
[1725570922252,0.178496,56282.0,56281.0,0.08277884]
[1725570922492,0.00082,56282.0,56281.0,0.08277884]
[1725570923131,0.00082,56282.0,56281.0,0.71601684]
[1725570924255,0.00082,56282.0,56281.0,0.71901684]
[1725570924481,0.00082,56282.0,56281.0,0.72101684]
[1725570925655,0.00082,56282.0,56281.0,1.07637584]
[1725570926119,0.00082,56282.0,56281.0,1.43173484]
[1725570926607,0.00082,56282.0,56281.0,1.42673484]
[1725570926872,0.00082,56282.0,56281.0,1.6272458]
[1725570927098,0.00082,56282.0,56281.0,1.6132458]
[1725570927311,0.00082,56282.0,56281.0,1.6022458]
[1725570927521,0.00082,56282.0,56281.0,1.6162458]
[1725570928001,0.00082,56282.0,56281.0,1.6302458]
[1725570928181,0.00082,56282.0,56281.0,1.6162458]
[1725570929523,0.00082,56282.0,56281.0,1.6302458]
[1725570930809,0.00082,56282.0,56281.0,1.45473484]
[1725570931021,0.00082,56282.0,56281.0,1.09937584]
[1725570933874,0.00082,56282.0,56281.0,0.74401684]
[1725570934086,0.00082,56282.0,56281.0,1.09937584]
[1725570937989,0.00082,56282.0,56281.0,0.74401684]
[1725570943917,0.00082,56282.0,56281.0,0.38865784]
[1725570944132,0.00082,56282.0,56281.0,0.74401684]
[1725570950554,0.36750839,56292.0,56287.0,0.00077884]
[1725570950771,0.36750839,56292.0,56290.0,0.00177884]
[1725570950978,0.532944,56291.0,56290.0,0.00177884]
[1725570951191,0.88824,56291.0,56290.0,0.00177884]
[1725570952664,0.88824,56291.0,56290.0,0.01277884]
[1725570953720,1.285036,56291.0,56290.0,0.011]
[1725570953921,1.75154846,56291.0,56290.0,0.023]
[1725570954337,1.75236446,56291.0,56290.0,0.023]
[1725570954458,1.85236446,56291.0,56290.0,0.023]
[1725570954660,1.85236446,56291.0,56290.0,0.012]
[1725570955103,1.85236446,56291.0,56290.0,0.02]
[1725570955945,1.85236446,56291.0,56290.0,0.008]
[1725570956150,0.888397,56281.0,56280.0,0.00177884]
[1725570959058,0.533049,56280.0,56279.0,0.00177884]
[1725570959267,0.888415,56280.0,56279.0,0.00177884]
[1725570960319,0.888415,56280.0,56279.0,0.01577884]
[1725570961810,0.888415,56280.0,56279.0,0.02977884]
[1725570964457,0.888415,56280.0,56279.0,0.10317884]
[1725570964458,0.177683,56280.0,56279.0,0.10317884]
[1725570964668,0.888415,56280.0,56279.0,0.10317884]
[1725570965105,0.887815,56280.0,56279.0,0.10317884]
[1725570965332,0.887715,56280.0,56279.0,0.10317884]
[1725570965969,0.887115,56280.0,56279.0,0.10317884]
[1725570966177,0.887015,56280.0,56279.0,0.10481084]
[1725570966385,0.531649,56280.0,56279.0,0.10481084]
[1725570966808,0.531149,56280.0,56279.0,0.10481084]
[1725570967018,0.530949,56280.0,56279.0,0.10481084]
[1725570967725,0.177679,56281.0,56280.0,0.07517884]
[1725570967945,0.533038,56281.0,56280.0,0.07517884]
[1725570969087,0.533038,56281.0,56280.0,0.08917884]
[1725570969914,0.177679,56281.0,56280.0,0.08917884]
[1725570970126,0.177679,56281.0,56280.0,0.10317884]
[1725570970754,0.355335,56285.0,56280.0,0.10317884]
[1725570970971,0.533002,56285.0,56284.0,0.07517884]
[1725570973273,0.533002,56285.0,56284.0,0.08617884]
[1725570974330,0.533002,56285.0,56284.0,0.09617884]
[1725570975167,0.888337,56285.0,56284.0,0.09617884]
[1725570975585,0.533002,56285.0,56284.0,0.09617884]
[1725570976873,0.53278817,56285.0,56284.0,0.09617884]
[1725570978688,0.17848,56286.0,56285.0,0.00177884]
[1725570979335,0.533808,56286.0,56285.0,0.00177884]
[1725570979685,0.000816,56286.0,56285.0,0.00177884]
[1725570979928,0.000816,56286.0,56285.0,0.36334584]
[1725570980406,0.000816,56286.0,56285.0,0.71867984]
[1725570984020,0.000816,56286.0,56285.0,1.07401384]
[1725570984226,0.000816,56286.0,56285.0,0.71867984]
[1725570985474,0.000816,56286.0,56285.0,1.07401384]
[1725570986918,0.000816,56286.0,56285.0,1.42934784]
[1725570987159,0.000816,56286.0,56285.0,1.07401384]
[1725570987358,0.000816,56286.0,56285.0,1.42934784]
[1725570988616,0.000816,56286.0,56285.0,1.07401384]
[1725570989060,0.000816,56286.0,56285.0,1.42934784]
[1725570989681,0.000816,56286.0,56285.0,1.07401384]
[1725570990925,0.000816,56286.0,56285.0,1.42934784]
[1725570991128,0.000816,56286.0,56285.0,1.07401384]
[1725570991364,0.000816,56286.0,56285.0,1.42934784]
[1725570991770,0.000816,56286.0,56285.0,1.5405643]
[1725570994681,0.000816,56286.0,56285.0,1.71607526]
[1725570996815,0.33701466,56352.0,56299.0,0.00177884]
[1725570997021,0.177619,56300.0,56299.0,0.00177884]
[1725570997247,0.532859,56300.0,56299.0,0.00177884]
[1725570998130,0.42156456,56302.0,56300.0,0.00177884]
[1725570998344,0.53285,56301.0,56300.0,0.00177884]
[1725570998783,0.53285,56301.0,56300.0,0.00077884]
[1725570999014,0.177617,56301.0,56300.0,0.00077884]
[1725570999228,0.177623,56299.0,56298.0,0.00077884]
[1725571001480,0.532869,56299.0,56298.0,0.00077884]
[1725571009462,0.88813,56298.0,56297.0,0.00077884]
[1725571010830,0.88813,56298.0,56297.0,0.00177884]
[1725571012171,0.88813,56298.0,56297.0,0.06947884]
[1725571013827,0.888946,56298.0,56297.0,0.06947884]
[1725571019736,0.533694,56298.0,56297.0,0.06947884]
[1725571019934,0.15487156,56298.0,56297.0,0.06947884]
[1725571020368,0.51012356,56298.0,56297.0,0.06947884]
[1725571020580,0.51012356,56298.0,56297.0,0.06847884]
[1725571021061,0.51012356,56298.0,56297.0,0.07147884]
[1725571021062,0.15487156,56298.0,56297.0,0.07147884]
[1725571021314,0.15487156,56298.0,56297.0,0.06947884]
[1725571021563,0.15487156,56298.0,56297.0,0.07447884]
[1725571022065,0.15487156,56298.0,56297.0,0.07347884]
[1725571022514,0.15487156,56298.0,56297.0,0.00577884]
[1725571022729,0.86537556,56298.0,56297.0,0.009]
[1725571024814,0.86537556,56298.0,56297.0,0.00977884]
[1725571025252,0.86537556,56298.0,56297.0,0.01141084]
[1725571026897,0.87839776,56298.0,56297.0,0.01141084]
[1725571028365,0.86537556,56298.0,56297.0,0.01141084]
[1725571028575,0.86537556,56298.0,56297.0,0.08111084]
[1725571031177,0.86537556,56298.0,56297.0,0.010632]